bitfinex/quotes_BTCUSD_20251012
["timestamp","ask_amount","ask_price","bid_price","bid_amount"]
[1760307356227,0.09252452,115700.0,115690.0,0.17287578]
[1760307356459,0.15409514,115700.0,115690.0,0.17287578]
[1760307356639,0.15309514,115700.0,115690.0,0.17287578]
[1760307357030,0.38862598,115700.0,115690.0,0.17287578]
[1760307357230,0.31277337,115700.0,115690.0,0.17287578]
[1760307357490,0.297316,115700.0,115690.0,0.17287578]
[1760307357624,0.297316,115700.0,115680.0,0.24090904]
[1760307357839,0.359986,115700.0,115690.0,0.17287578]
[1760307358041,0.297316,115700.0,115690.0,0.17287578]
[1760307358234,0.05146516,115700.0,115690.0,0.24382768]
[1760307358664,0.296316,115700.0,115690.0,0.20302768]
[1760307358839,0.297316,115700.0,115690.0,0.20302768]
[1760307359050,0.296316,115700.0,115690.0,0.20302768]
[1760307359225,0.295316,115700.0,115690.0,0.20302768]
[1760307359588,0.11673085,115700.0,115690.0,0.20302768]
[1760307359998,0.39271373,115700.0,115680.0,0.06802794]
[1760307360212,0.22785211,115690.0,115680.0,0.04162794]
[1760307360417,0.3270703,115690.0,115680.0,0.21451867]
[1760307360958,0.05030452,115690.0,115680.0,0.28171867]
[1760307361164,0.01853452,115690.0,115680.0,0.31187057]
[1760307361443,0.03177,115700.0,115690.0,0.17287578]
[1760307361635,0.26441618,115700.0,115690.0,0.17287578]
[1760307362346,0.26541618,115700.0,115690.0,0.17287578]
[1760307362510,0.30952084,115700.0,115690.0,0.17287578]
[1760307362932,0.30952084,115700.0,115680.0,0.27107057]
[1760307363127,0.31052084,115700.0,115680.0,0.27107057]
[1760307363330,0.31052084,115700.0,115690.0,0.17287578]
[1760307364296,0.30852084,115700.0,115690.0,0.17287578]
[1760307364613,0.30952084,115700.0,115690.0,0.17287578]
[1760307364807,0.30852084,115700.0,115680.0,0.27107057]
[1760307365004,0.03177,115690.0,115680.0,0.27107057]
[1760307365382,0.03277,115700.0,115690.0,0.21367578]
[1760307365671,0.002,115700.0,115690.0,0.24382768]
[1760307365874,0.002,115700.0,115690.0,0.30385768]
[1760307366017,0.001,115700.0,115690.0,0.24382768]
[1760307366225,0.03177,115700.0,115690.0,0.24382768]
[1760307366420,0.03277,115700.0,115690.0,0.24382768]
[1760307366750,0.07399,115700.0,115690.0,0.24382768]
[1760307366950,0.07399,115700.0,115690.0,0.20302768]
[1760307367153,0.03277,115700.0,115690.0,0.24382768]
[1760307367946,0.07499,115700.0,115690.0,0.20302768]
[1760307368144,0.06093242,115700.0,115690.0,0.20302768]
[1760307368348,0.06093242,115700.0,115690.0,0.21708768]
[1760307368548,0.06093242,115700.0,115690.0,0.25788768]
[1760307368549,0.01971242,115700.0,115690.0,0.25788768]
[1760307369196,0.002,115700.0,115690.0,0.25788768]
[1760307369872,0.21608084,115700.0,115690.0,0.0442119]
[1760307370095,0.31052084,115700.0,115690.0,0.17287578]
[1760307370274,0.13766,115700.0,115690.0,0.17287578]
[1760307370486,0.07499,115700.0,115690.0,0.17287578]
[1760307370792,0.22817003,115700.0,115690.0,0.17287578]
[1760307371109,0.22817003,115700.0,115690.0,0.20443578]
[1760307371541,0.27005364,115700.0,115690.0,0.20443578]
[1760307372286,0.05044728,115700.0,115690.0,0.24523578]
[1760307372487,0.06462989,115700.0,115690.0,0.24523578]
[1760307372699,0.27871073,115700.0,115690.0,0.17287578]
[1760307372899,0.26452812,115700.0,115690.0,0.17287578]
[1760307373097,0.26452812,115700.0,115690.0,0.24523578]
[1760307373299,0.24585084,115700.0,115690.0,0.17287578]
[1760307373498,0.30852084,115700.0,115690.0,0.17287578]
[1760307373706,0.07299,115700.0,115690.0,0.17287578]
[1760307373904,0.01418261,115700.0,115690.0,0.24523578]
[1760307374320,0.08717261,115700.0,115690.0,0.24523578]
[1760307374852,0.1728459,115710.0,115700.0,0.17286084]
[1760307375054,0.2458359,115710.0,115700.0,0.17286084]
[1760307375974,0.2468359,115710.0,115700.0,0.17286084]
[1760307376925,0.3095059,115710.0,115690.0,0.24323146]
[1760307377277,0.03177,115700.0,115690.0,0.24323146]
[1760307377659,0.03177,115700.0,115690.0,0.28403146]
[1760307378886,0.03377,115700.0,115690.0,0.28403146]
[1760307379112,0.002,115700.0,115690.0,0.28403146]
[1760307379312,0.002,115700.0,115690.0,0.34187146]
[1760307379503,0.002,115700.0,115690.0,0.99844295]
[1760307381755,0.002,115700.0,115690.0,1.08797247]
[1760307381975,0.04575261,115750.0,115740.0,0.1728011]
[1760307382171,0.27360919,115760.0,115750.0,0.17278617]
[1760307382374,0.27360919,115760.0,115750.0,0.23827617]
[1760307382375,0.03157,115760.0,115750.0,0.23827617]
[1760307382592,0.17277125,115760.0,115750.0,0.29611617]
[1760307382822,0.24552125,115760.0,115750.0,0.17278617]
[1760307383185,0.08187795,115760.0,115750.0,0.17278617]
[1760307383357,0.08187795,115760.0,115750.0,0.19911617]
[1760307383558,0.04069795,115760.0,115750.0,0.23827617]
[1760307383945,0.00014777,115760.0,115750.0,0.29811617]
[1760307384100,0.00014777,115760.0,115750.0,0.32626807]
[1760307384490,0.00114777,115760.0,115750.0,0.32626807]
[1760307384753,0.00414777,115760.0,115750.0,0.32626807]
[1760307385079,0.00414777,115760.0,115750.0,0.26842807]
[1760307385462,0.00414777,115760.0,115750.0,0.32626807]
[1760307394911,0.00414777,115760.0,115750.0,0.98283956]
[1760307395107,0.00414777,115760.0,115750.0,0.32626807]
[1760307396962,0.07689777,115760.0,115750.0,0.23827617]
[1760307397165,0.07689777,115760.0,115750.0,0.22926807]
[1760307397364,0.00414777,115760.0,115750.0,0.95268766]
[1760307397835,0.00414777,115760.0,115750.0,0.98283956]
[1760307398020,0.00414777,115760.0,115750.0,0.32626807]
[1760307398982,0.00414777,115760.0,115750.0,0.26842807]
[1760307399201,0.17278617,115750.0,115740.0,0.19912705]
[1760307399413,0.17278617,115750.0,115740.0,0.23828705]
[1760307399414,0.07275,115750.0,115740.0,0.23828705]
[1760307399614,0.20848902,115760.0,115750.0,0.17278617]
[1760307399840,0.24966902,115760.0,115740.0,0.28711895]
[1760307400113,0.24666902,115760.0,115750.0,0.21430617]
[1760307400358,0.24566902,115760.0,115750.0,0.27979617]
[1760307400611,0.00014777,115760.0,115750.0,0.33763617]
[1760307400762,0.00014777,115760.0,115750.0,0.36778807]
[1760307402100,0.00314777,115760.0,115750.0,0.36778807]
[1760307404630,0.00314777,115760.0,115750.0,1.11388908]
[1760307405233,0.00314777,115760.0,115750.0,0.45731759]
[1760307407170,0.00314777,115760.0,115750.0,0.36778807]
[1760307407376,0.00314777,115760.0,115750.0,0.45731759]
[1760307407594,1e-08,115760.0,115750.0,1.11388908]
[1760307407810,1e-08,115760.0,115750.0,0.92250813]
[1760307408009,1e-08,115760.0,115750.0,1.04750811]
[1760307408150,1e-08,115760.0,115750.0,0.55731758]
[1760307408359,1e-08,115760.0,115750.0,0.92250813]
[1760307408559,0.30779559,115800.0,115790.0,0.20287838]
[1760307408917,0.34336825,115800.0,115790.0,0.26936838]
[1760307409781,0.86525879,115800.0,115790.0,0.004]
[1760307410384,0.40006825,115800.0,115790.0,0.004]
[1760307411854,0.86525879,115800.0,115790.0,0.004]
[1760307413529,1.82184879,115800.0,115790.0,0.004]
[1760307414573,0.86525879,115800.0,115790.0,0.004]
[1760307415177,1.82184879,115800.0,115790.0,0.004]
[1760307415753,2.32184879,115800.0,115790.0,0.04548]
[1760307417339,2.78703933,115800.0,115790.0,0.04548]
[1760307417538,1.37914017,115800.0,115790.0,0.04548]
[1760307417795,2.80092071,115800.0,115790.0,0.04548]
[1760307418175,1.87053963,115800.0,115790.0,0.04548]
[1760307418389,1.85665825,115800.0,115790.0,0.04548]
[1760307418589,1.36525879,115800.0,115790.0,0.04548]
[1760307418834,2.32184879,115800.0,115790.0,0.04548]
[1760307419165,1.85665825,115800.0,115790.0,0.04548]
[1760307419414,2.32184879,115800.0,115790.0,0.04548]
[1760307420421,1.36525879,115800.0,115790.0,0.04548]
[1760307420624,2.32184879,115800.0,115790.0,0.04548]
[1760307421879,2.41056813,115800.0,115790.0,0.04548]
[1760307422082,2.32184879,115800.0,115790.0,0.04548]
[1760307423260,2.32184879,115800.0,115790.0,0.31538]
[1760307423909,1.85665825,115800.0,115790.0,0.31538]
[1760307424119,2.78703933,115800.0,115790.0,0.04548]
[1760307424324,0.17277943,115760.0,115750.0,0.04148]
[1760307424564,0.76554997,115760.0,115750.0,0.04148]
[1760307424766,1.72213997,115760.0,115750.0,0.04148]
[1760307425161,0.17281603,115730.0,115720.0,0.06926707]
[1760307425367,0.76558657,115730.0,115720.0,0.11078707]
[1760307425533,0.30039603,115730.0,115720.0,0.11093484]
[1760307425773,0.76558657,115730.0,115720.0,0.04166777]
[1760307427363,0.76758657,115730.0,115720.0,0.04166777]
[1760307427861,0.85830591,115730.0,115720.0,0.04166777]
[1760307428094,1.81489591,115730.0,115720.0,0.04166777]
[1760307428468,1.84089446,115730.0,115720.0,0.04166777]
[1760307428702,1.81489591,115730.0,115720.0,0.04166777]
[1760307428861,1.72617657,115730.0,115720.0,0.04166777]
[1760307429067,1.75217604,115730.0,115720.0,0.04166777]
[1760307429483,1.75017604,115730.0,115720.0,0.04166777]
[1760307429961,1.75217604,115730.0,115720.0,0.04166777]
[1760307430163,1.75017604,115730.0,115720.0,0.04166777]
[1760307430474,1.2869855,115730.0,115720.0,0.04166777]
[1760307430697,1.72617657,115730.0,115720.0,0.04166777]
[1760307431015,0.30439603,115730.0,115720.0,0.04166777]
[1760307431647,0.76958657,115730.0,115720.0,0.04166777]
[1760307434259,1.81489591,115730.0,115720.0,0.04166777]
[1760307434434,0.85830591,115730.0,115720.0,0.04166777]
[1760307434660,1.81489591,115730.0,115720.0,0.04166777]
[1760307435439,1.72617657,115730.0,115720.0,0.04166777]
[1760307435664,0.30439603,115730.0,115720.0,0.04166777]
[1760307436492,0.76958657,115730.0,115720.0,0.04166777]
[1760307436823,1.72617657,115730.0,115720.0,0.04166777]
[1760307438166,0.30439603,115730.0,115720.0,0.04166777]
[1760307438370,0.30891287,115730.0,115720.0,0.04166777]
[1760307439475,0.77410341,115730.0,115720.0,0.04166777]
[1760307440048,1.7820931,115730.0,115720.0,0.04166777]
[1760307440884,1.26550287,115730.0,115720.0,0.04166777]
[1760307441097,0.30891287,115730.0,115720.0,0.04166777]
[1760307441426,1.26550287,115730.0,115720.0,0.04166777]
[1760307441634,1.73069341,115730.0,115720.0,0.04166777]
[1760307441842,1.73069341,115730.0,115720.0,1e-08]
[1760307442049,1.73069341,115730.0,115660.0,0.11078707]
[1760307442050,0.00864453,115680.0,115660.0,0.11078707]
[1760307442275,0.08932,115680.0,115660.0,0.30899106]
[1760307442472,0.26221108,115680.0,115660.0,0.30899106]
[1760307442676,0.17290567,115670.0,115660.0,0.23972399]
[1760307442825,0.24053567,115670.0,115660.0,0.09695535]
[1760307443027,0.24053567,115670.0,115660.0,0.23972407]
[1760307443273,0.24053567,115670.0,115660.0,0.10707345]
[1760307443447,0.24053567,115670.0,115660.0,0.09695535]
[1760307443850,0.17290567,115670.0,115660.0,0.31014597]
[1760307444109,0.02918,115680.0,115670.0,0.17290567]
[1760307444259,0.20207073,115680.0,115670.0,0.26811757]
[1760307444478,0.21070611,115690.0,115670.0,0.26811757]
[1760307444686,0.17289073,115680.0,115670.0,0.26811757]
[1760307444885,0.20207073,115680.0,115670.0,0.26811757]
[1760307445084,0.06763,115680.0,115670.0,0.26811757]
[1760307445266,0.24052073,115680.0,115670.0,0.22784757]
[1760307445448,0.06763,115680.0,115670.0,0.26811757]
[1760307445654,0.02918,115680.0,115670.0,0.26811757]
[1760307446085,0.27084611,115690.0,115680.0,0.17289073]
[1760307446086,0.17287578,115690.0,115680.0,0.17289073]
[1760307446286,0.30064578,115690.0,115670.0,0.22784757]
[1760307446577,0.30960385,115690.0,115680.0,0.17289073]
[1760307446779,0.07658807,115690.0,115680.0,0.17289073]
[1760307447102,0.20204084,115700.0,115690.0,0.17287578]
[1760307447309,0.30063084,115700.0,115680.0,0.19858073]
[1760307447473,0.02918,115690.0,115680.0,0.22873263]
[1760307447869,0.20204084,115700.0,115690.0,0.17287578]
[1760307448113,0.30063084,115700.0,115690.0,0.17287578]
[1760307448280,0.30063084,115700.0,115680.0,0.22873263]
[1760307448478,0.20305578,115690.0,115680.0,0.20304263]
[1760307448689,0.06863,115690.0,115680.0,0.20304263]
[1760307449178,0.27578505,115730.0,115710.0,0.1728459]
[1760307449385,0.10296391,115730.0,115720.0,0.26894287]
[1760307449587,0.17733287,115730.0,115720.0,0.26894287]
[1760307449986,0.24496287,115730.0,115720.0,0.26894287]
[1760307450181,0.03369684,115730.0,115720.0,0.26894287]
[1760307451452,0.24496287,115730.0,115720.0,0.26894287]
[1760307451651,0.07614684,115730.0,115720.0,0.26894287]
[1760307451854,0.24896287,115730.0,115720.0,0.31046287]
[1760307453793,0.07614684,115730.0,115720.0,0.24450287]
[1760307453992,0.24896287,115730.0,115720.0,0.24450287]
[1760307454360,0.30910287,115730.0,115720.0,0.24450287]
[1760307454578,0.07614684,115730.0,115720.0,0.24450287]
[1760307454785,0.24896287,115730.0,115720.0,0.24450287]
[1760307455198,0.07614684,115730.0,115720.0,0.31046287]
[1760307455380,0.07614684,115730.0,115720.0,0.27019287]
[1760307456719,0.07614684,115730.0,115720.0,0.31046287]
[1760307457812,0.03769684,115730.0,115720.0,0.31046287]
[1760307458432,0.07614684,115730.0,115720.0,0.31046287]
[1760307458819,0.03769684,115730.0,115720.0,0.31046287]
[1760307459016,0.07614684,115730.0,115720.0,0.31046287]
[1760307460021,0.00851684,115730.0,115720.0,0.31046287]
[1760307460875,0.00851684,115730.0,115720.0,0.37205287]
[1760307462330,0.004,115730.0,115720.0,0.37205287]
[1760307463180,0.04245,115730.0,115720.0,0.27019287]
[1760307463427,0.07163,115730.0,115720.0,0.27019287]
[1760307463639,0.07163,115730.0,115720.0,0.31046287]
[1760307463953,0.03318,115730.0,115720.0,0.31046287]
[1760307464711,0.004,115730.0,115720.0,0.31046287]
[1760307465828,0.04111,115730.0,115720.0,0.31046287]
[1760307466048,0.004,115730.0,115720.0,0.36835287]
[1760307467152,0.004,115730.0,115720.0,0.24450287]
[1760307467153,0.12949,115730.0,115720.0,0.24450287]
[1760307467303,0.06976,115730.0,115720.0,0.30541287]
[1760307467907,0.03265,115730.0,115720.0,0.30541287]
[1760307468166,0.06976,115730.0,115720.0,0.26815287]
[1760307468744,0.31415864,115730.0,115720.0,0.04152]
[1760307468921,0.17286084,115700.0,115690.0,0.03044]
[1760307469128,0.29871084,115700.0,115690.0,0.07210794]
[1760307469364,0.37626227,115700.0,115690.0,0.07210794]
[1760307469630,1.2828846,115700.0,115690.0,0.04166794]
[1760307470466,0.35103804,115700.0,115690.0,0.00014794]
[1760307470707,0.3262946,115700.0,115690.0,0.00014794]
[1760307470904,0.35103804,115700.0,115690.0,0.00014794]
[1760307471115,1.30962804,115700.0,115690.0,0.00014794]
[1760307471340,1.40034738,115700.0,115690.0,0.00014794]
[1760307471554,1.25730084,115700.0,115690.0,0.00014794]
[1760307471789,1.2828846,115700.0,115690.0,0.00014794]
[1760307471998,1.2828846,115700.0,115690.0,0.00414794]
[1760307472198,1.2828846,115700.0,115690.0,0.00114794]
[1760307472434,1.2828846,115700.0,115690.0,0.00314794]
[1760307472716,1.37160394,115700.0,115690.0,0.00314794]
[1760307472973,1.39634738,115700.0,115690.0,0.00114794]
[1760307473378,0.67289073,115680.0,115670.0,0.04152]
[1760307473587,1.1853321,115680.0,115670.0,0.04152]
[1760307473817,1.2830621,115680.0,115670.0,0.04152]
[1760307474431,1.25547834,115680.0,115670.0,0.04152]
[1760307474849,1.25847834,115680.0,115670.0,0.04152]
[1760307475060,1.26147834,115680.0,115670.0,0.04152]
[1760307475483,1.2890621,115680.0,115670.0,0.04152]
[1760307475693,0.3324721,115680.0,115670.0,0.04152]
[1760307476354,1.3424102,115680.0,115670.0,0.04152]
[1760307476537,1.31482644,115680.0,115670.0,0.04152]
[1760307477308,1.3402819,115680.0,115670.0,0.04152]
[1760307477488,1.31167724,115680.0,115670.0,0.04152]
[1760307478096,0.17295053,115640.0,115620.0,0.09435707]
[1760307478308,0.16731288,115640.0,115630.0,0.04152]
[1760307478508,0.20764288,115640.0,115630.0,0.04152]
[1760307478901,0.26504288,115640.0,115630.0,0.04152]
[1760307479101,0.27406433,115640.0,115630.0,0.04152]
[1760307479369,0.27406433,115640.0,115630.0,0.04201345]
[1760307480484,0.32644374,115640.0,115630.0,0.04201345]
[1760307480627,0.27806433,115640.0,115630.0,0.04201345]
[1760307480865,0.31182198,115640.0,115630.0,0.21497894]
[1760307481042,0.31482198,115640.0,115630.0,0.04201345]
[1760307481246,0.30782198,115640.0,115630.0,0.04201345]
[1760307481659,0.30782198,115640.0,115630.0,0.04501345]
[1760307481884,0.30782198,115640.0,115630.0,0.04201345]
[1760307482323,0.31082198,115640.0,115630.0,0.04201345]
[1760307482710,0.36287716,115640.0,115630.0,0.04201345]
[1760307482881,0.38833262,115640.0,115630.0,0.04201345]
[1760307483083,0.33627744,115640.0,115630.0,0.04201345]
[1760307483472,0.33927744,115640.0,115630.0,0.04201345]
[1760307483925,0.33627744,115640.0,115630.0,0.04201345]
[1760307484126,0.33327744,115640.0,115630.0,0.04201345]
[1760307484285,0.33327744,115640.0,115630.0,0.04501345]
[1760307484710,0.33327744,115640.0,115630.0,0.04201345]
[1760307484916,0.33327744,115640.0,115630.0,0.04701345]
[1760307485672,0.30782198,115640.0,115630.0,0.21997894]
[1760307485829,0.30782198,115640.0,115630.0,0.04701345]
[1760307486038,0.30782198,115640.0,115630.0,0.21997894]
[1760307487623,0.30782198,115640.0,115630.0,0.04701345]
[1760307487837,0.30782198,115640.0,115630.0,0.21997894]
[1760307488846,0.30782198,115640.0,115630.0,0.04701345]
[1760307489178,0.33115586,115640.0,115630.0,0.04701345]
[1760307489792,0.30782198,115640.0,115630.0,0.04701345]
[1760307490221,0.34958851,115640.0,115630.0,0.04701345]
[1760307490432,0.38051915,115640.0,115630.0,0.04701345]
[1760307490607,0.20756862,115640.0,115630.0,0.04701345]
[1760307490787,0.34958851,115640.0,115630.0,0.04701345]
[1760307490988,0.30782198,115640.0,115630.0,0.04701345]
[1760307491193,0.30782198,115640.0,115630.0,0.21997894]
[1760307492277,0.30782198,115640.0,115630.0,0.04701345]
[1760307492848,0.31234182,115640.0,115630.0,0.04701345]
[1760307493052,0.36640637,115640.0,115630.0,0.04701345]
[1760307493417,0.31234182,115640.0,115630.0,0.04701345]
[1760307493615,0.13939129,115640.0,115630.0,0.21997894]
[1760307493822,0.32652443,115640.0,115630.0,0.04701345]
[1760307494062,0.31234182,115640.0,115630.0,0.04701345]
[1760307494266,0.31234182,115640.0,115630.0,0.21497894]
[1760307494438,0.31234182,115640.0,115630.0,0.04201345]
[1760307494644,0.31234182,115640.0,115630.0,0.21497894]
[1760307494839,0.31234182,115640.0,115630.0,0.04201345]
[1760307495199,0.31234182,115640.0,115630.0,0.21497894]
[1760307495350,0.31234182,115640.0,115630.0,0.04201345]
[1760307495751,0.00451984,115640.0,115630.0,0.30699084]
[1760307495974,0.00451984,115640.0,115630.0,0.36272084]
[1760307496208,0.22386959,115660.0,115650.0,0.20308748]
[1760307496419,0.25001698,115660.0,115650.0,0.20308748]
[1760307496622,0.00451906,115660.0,115650.0,0.32211748]
[1760307497163,0.20965543,115680.0,115670.0,0.0301519]
[1760307497399,0.03263833,115680.0,115670.0,0.26472757]
[1760307497613,0.00451833,115680.0,115670.0,0.32045757]
[1760307498485,0.00466594,115680.0,115670.0,0.32045757]
[1760307498691,0.00014761,115680.0,115670.0,0.32045757]
[1760307499043,0.00014761,115680.0,115670.0,0.32345757]
[1760307499677,0.00014761,115680.0,115670.0,0.41298709]
[1760307500086,0.00014761,115680.0,115670.0,0.41598709]
[1760307500350,0.00014761,115680.0,115670.0,0.32645757]
[1760307500833,0.04888345,115700.0,115690.0,0.17287578]
[1760307501039,0.04888345,115700.0,115690.0,0.23712578]
[1760307501465,0.20562559,115700.0,115690.0,0.23712578]
[1760307501682,0.24457559,115700.0,115690.0,0.19796578]
[1760307501884,0.07171475,115700.0,115690.0,0.19796578]
[1760307502057,0.07171475,115700.0,115690.0,0.20296578]
[1760307502846,0.03276475,115700.0,115690.0,0.20296578]
[1760307503048,0.07171475,115700.0,115690.0,0.20296578]
[1760307503693,0.07171475,115700.0,115690.0,0.20796578]
[1760307504228,0.24457559,115700.0,115690.0,0.20796578]
[1760307504437,0.24457559,115700.0,115690.0,0.27727768]
[1760307504438,0.00441475,115700.0,115690.0,0.27727768]
[1760307504577,0.01613402,115720.0,115710.0,0.1728459]
[1760307504913,0.86510993,115730.0,115720.0,0.0301519]
[1760307505112,0.98171386,115730.0,115720.0,0.0716719]
[1760307505522,0.99055014,115730.0,115720.0,0.0716719]
[1760307506917,0.07634069,115730.0,115720.0,0.30875287]
[1760307507120,0.05775462,115730.0,115720.0,0.30875287]
[1760307507303,0.02079834,115730.0,115720.0,0.37756287]
[1760307507479,0.00466448,115730.0,115720.0,0.37756287]
[1760307507881,0.00014786,115730.0,115720.0,0.37756287]
[1760307508079,0.00014786,115730.0,115720.0,0.36756287]
[1760307508284,0.00014786,115730.0,115720.0,0.46209239]
[1760307508821,0.00014786,115730.0,115720.0,0.45709239]
[1760307509997,0.00014786,115730.0,115720.0,0.37256287]
[1760307510633,0.00014786,115730.0,115720.0,0.37756287]
[1760307514986,0.94817035,115730.0,115720.0,0.05152]
[1760307515188,0.93398774,115730.0,115720.0,0.05152]
[1760307516317,0.93398774,115730.0,115720.0,0.0716719]
[1760307516511,0.93398774,115730.0,115720.0,0.0766719]
[1760307516721,0.93398774,115730.0,115720.0,0.0816719]
[1760307517100,0.93398774,115730.0,115720.0,0.0766719]
[1760307517302,0.93398774,115730.0,115720.0,0.0816719]
[1760307517505,0.93398774,115730.0,115720.0,0.05152]
[1760307517711,1.89057774,115730.0,115720.0,0.05152]
[1760307518774,0.93398774,115730.0,115720.0,0.05152]
[1760307518974,1.89057774,115730.0,115720.0,0.05152]
[1760307519181,1.93234502,115730.0,115720.0,0.04652]
[1760307519396,1.93234502,115730.0,115720.0,0.04152]
[1760307519596,1.90915234,115730.0,115720.0,0.05152]
[1760307519798,1.90915234,115730.0,115720.0,0.04652]
[1760307519951,1.90915234,115730.0,115720.0,0.04152]
[1760307520153,1.90915234,115730.0,115720.0,0.04652]
[1760307520334,1.93234502,115730.0,115720.0,0.04652]
[1760307520741,1.93234502,115730.0,115720.0,0.05152]
[1760307521147,2.051995,115730.0,115720.0,0.05152]
[1760307521346,1.96327566,115730.0,115720.0,0.05152]
[1760307522161,1.93234502,115730.0,115720.0,0.04152]
[1760307522592,1.93234502,115730.0,115720.0,0.05152]
[1760307523065,1.93234502,115730.0,115720.0,0.04652]
[1760307523792,1.93234502,115730.0,115720.0,0.05152]
[1760307524430,1.96327566,115730.0,115720.0,0.05152]
[1760307524643,1.29754117,115730.0,115720.0,0.05152]
[1760307524855,1.93234502,115730.0,115720.0,0.05152]
[1760307525287,1.93234502,115730.0,115720.0,0.01]
[1760307525288,1.96327566,115730.0,115720.0,0.01]
[1760307526175,1.00668566,115730.0,115720.0,0.01]
[1760307526448,1.89057774,115730.0,115720.0,0.01]
[1760307526687,0.93398774,115730.0,115720.0,0.01]
[1760307527116,0.87506774,115730.0,115720.0,0.18283097]
[1760307527521,0.00014786,115730.0,115720.0,0.27530287]
[1760307527735,0.2531865,115730.0,115720.0,0.27530287]
[1760307527945,0.23900389,115730.0,115720.0,0.23663287]
[1760307528124,0.87380774,115730.0,115720.0,0.0401519]
[1760307528537,0.87380774,115730.0,115720.0,0.21298287]
[1760307528729,0.23900389,115730.0,115720.0,0.21298287]
[1760307528953,0.87380774,115730.0,115720.0,0.0401519]
[1760307529598,0.87380774,115730.0,115720.0,0.21298287]
[1760307529599,0.75239065,115730.0,115720.0,0.21298287]
[1760307530398,0.75239065,115730.0,115720.0,0.0401519]
[1760307530995,0.75239065,115730.0,115720.0,0.21298287]
[1760307531604,0.84110999,115730.0,115720.0,0.01]
[1760307531810,1.70898065,115730.0,115720.0,0.01]
[1760307532815,1.25011389,115730.0,115720.0,0.01]
[1760307533016,0.75239065,115730.0,115720.0,0.0401519]
[1760307534630,0.75239065,115730.0,115720.0,0.01]
[1760307534829,1.25011389,115730.0,115720.0,0.01]
[1760307535036,1.70898065,115730.0,115720.0,0.01]
[1760307536207,1.25011389,115730.0,115720.0,0.01]
[1760307536408,0.69787065,115730.0,115720.0,0.01]
[1760307536618,1.70898065,115730.0,115720.0,0.01]
[1760307537175,1.70898065,115730.0,115720.0,0.005]
[1760307537370,0.17283097,115720.0,115710.0,0.24451738]
[1760307537573,0.69926773,115720.0,115710.0,0.24451738]
[1760307537817,0.29492097,115720.0,115710.0,0.04152]
[1760307537988,0.24040097,115720.0,115710.0,0.2445178]
[1760307538208,0.75378773,115720.0,115710.0,0.04152]
[1760307538621,0.75830444,115720.0,115710.0,0.04152]
[1760307538830,0.75830444,115720.0,115710.0,0.04652]
[1760307539163,0.75830444,115720.0,115710.0,0.05152]
[1760307539477,0.29943768,115720.0,115710.0,0.2243659]
[1760307539678,0.29943768,115720.0,115710.0,0.2545178]
[1760307540109,0.24491768,115720.0,115710.0,0.2936278]
[1760307540311,0.03358671,115720.0,115710.0,0.3168678]
[1760307540581,0.07208671,115720.0,115710.0,0.3168678]
[1760307540753,0.24491768,115720.0,115710.0,0.3168678]
[1760307541171,0.07208671,115720.0,115710.0,0.2777578]
[1760307541535,0.24491768,115720.0,115710.0,0.2777578]
[1760307541746,0.29943768,115720.0,115710.0,0.0816719]
[1760307542159,0.29943768,115720.0,115710.0,0.05152]
[1760307542460,1.26729568,115720.0,115710.0,0.05152]
[1760307542869,0.17287578,115690.0,115680.0,0.11078707]
[1760307543085,1.25155578,115690.0,115680.0,0.11870424]
[1760307543536,1.34027512,115690.0,115680.0,0.04943826]
[1760307543681,0.17290567,115670.0,115660.0,0.06926707]
[1760307543885,1.25158567,115670.0,115660.0,0.06926707]
[1760307544060,1.25158567,115670.0,115660.0,0.00049345]
[1760307546104,1.12951062,115660.0,115650.0,0.04152]
[1760307546298,0.20199062,115660.0,115650.0,0.04166761]
[1760307546502,1.25160062,115660.0,115650.0,0.04166761]
[1760307547652,1.25460062,115660.0,115650.0,0.04166761]
[1760307548044,0.29501062,115660.0,115650.0,0.04166761]
[1760307548247,1.25160062,115660.0,115650.0,0.04166761]
[1760307548400,1.25460062,115660.0,115650.0,0.04166761]
[1760307548610,0.29801062,115660.0,115650.0,0.04166761]
[1760307548911,1.25460062,115660.0,115650.0,0.04166761]
[1760307551542,0.29801062,115660.0,115650.0,0.04166761]
[1760307552183,0.34800925,115660.0,115650.0,0.04166761]
[1760307552381,0.29801062,115660.0,115650.0,0.04166761]
[1760307553163,1.25460062,115660.0,115650.0,0.04166761]
[1760307553277,1.2779345,115660.0,115650.0,0.04166761]
[1760307553850,1.30115545,115660.0,115650.0,0.04166761]
[1760307554001,1.38987479,115660.0,115650.0,0.04166761]
[1760307554203,0.17295053,115640.0,115630.0,0.03044]
[1760307554402,0.24647702,115640.0,115630.0,0.03044]
[1760307554663,0.28497702,115640.0,115630.0,0.03044]
[1760307554889,0.33949702,115640.0,115630.0,0.03044]
[1760307555542,0.31826148,115640.0,115630.0,0.03044]
[1760307555745,0.29504053,115640.0,115630.0,0.03044]
[1760307555946,0.34149702,115640.0,115630.0,0.03044]
[1760307556755,0.002,115640.0,115630.0,0.29612739]
[1760307556960,0.01618261,115640.0,115630.0,0.29612739]
[1760307557119,0.01618261,115640.0,115630.0,0.34959739]
[1760307557321,0.01618261,115640.0,115630.0,0.29612739]
[1760307557990,0.002,115640.0,115630.0,0.29612739]
[1760307558402,0.31122314,115640.0,115630.0,0.23355739]
[1760307558600,0.29704053,115640.0,115630.0,0.23355739]
[1760307559029,0.29704053,115640.0,115630.0,0.03044]
[1760307559906,0.31827607,115640.0,115630.0,0.03044]
[1760307560107,0.34149702,115640.0,115630.0,0.03044]
[1760307560288,0.17296549,115630.0,115620.0,0.04152]
[1760307560475,1.15787549,115630.0,115620.0,0.04152]
[1760307560681,1.29321588,115630.0,115620.0,0.04152]
[1760307561774,1.29521588,115630.0,115620.0,0.04152]
[1760307562307,0.33862588,115630.0,115620.0,0.04152]
[1760307562512,1.37251848,115630.0,115620.0,0.04152]
[1760307562719,1.35471558,115630.0,115620.0,0.04152]
[1760307563357,1.27265088,115630.0,115620.0,0.04152]
[1760307563967,1.29468008,115630.0,115620.0,0.04152]
[1760307564993,1.27339469,115630.0,115620.0,0.04152]
[1760307565198,1.26848592,115630.0,115620.0,0.04152]
[1760307565983,1.28921388,115630.0,115620.0,0.04152]
[1760307567813,1.24645672,115630.0,115620.0,0.04152]
[1760307568044,1.26718468,115630.0,115620.0,0.04152]
[1760307568247,0.31059468,115630.0,115620.0,0.04152]
[1760307568854,0.33517828,115630.0,115620.0,0.04152]
[1760307570247,1.29176828,115630.0,115620.0,0.04152]
[1760307570447,1.38048762,115630.0,115620.0,0.04152]
[1760307570860,1.29176828,115630.0,115620.0,0.04152]
[1760307571264,1.2509771,115630.0,115620.0,0.04152]
[1760307571468,0.2943871,115630.0,115620.0,0.04152]
[1760307574790,1.2509771,115630.0,115620.0,0.04152]